Cogmind - Beta 15 @@@ ROGUE MODE // 2025.06.21 @ 17:44:01 Player: PANDORA Result: Destroyed by 0D-60U(R) with Subdweller Machine Gun Performance ------------- Evolutions (0) 0 Regions Visited (3) 600 Robots Destroyed (59) 295 Value Destroyed (1188) 1188 Prototype IDs (0) 0 Alien Tech Used (0) 0 Bonus (-80) -80 TOTAL SCORE: 2003 Bonus ------- High Alert Combat Kills 58 Friendly Fire -138 Cogmind --------- Core Integrity 0/250 Matter 281/300 Energy 313/315 System Corruption 1% Temperature Cool (0) Movement Walking (130) Location -10/Subcaves Parts ------- > --- POWER (1) -------- Neutrino Core > --- PROPULSION (2) --- Carbon-fiber Leg Makeshift Leg > --- UTILITY (2) ------ Medium Storage Unit Signal Interpreter > --- WEAPON (2) ------- Assault Rifle Flamer > --- INVENTORY (10) --- Spiked Treads Improved Aluminum Leg Improved Aluminum Leg Huge Storage Unit Experimental Sensor Array Makeshift Light Armor Plating Grenade Launcher Rocket Launcher Subdweller Shrapnel Launcher Peak State ------------ > --- POWER ------------ Neutrino Core > --- PROPULSION ------- Carbon-fiber Leg Makeshift Leg > --- UTILITY ---------- Medium Storage Unit Signal Interpreter > --- WEAPON ----------- Assault Rifle Flamer > --- INVENTORY -------- Spiked Treads Improved Aluminum Leg Improved Aluminum Leg Huge Storage Unit Experimental Sensor Array Hardened Light Armor Plating Makeshift Light Armor Plating Grenade Launcher Rocket Launcher Subdweller Shrapnel Launcher [Rating: 20] Favorites ----------- Power Ion Engine Engine Ion Engine Power Core Neutrino Core Propulsion Light Treads Treads Light Treads Leg Improved Aluminum Leg Utility Medium Storage Unit Device Structural Scanner Storage Medium Storage Unit Processor Signal Interpreter Protection Hardened Light Armor Plating Weapon Mini Grenade Launcher Energy Gun Particle Gun Ballistic Gun Assault Rifle Launcher Mini Grenade Launcher Special Weapon Flamer Build | -11 -10 -10 -10 ------- Run | Yrd Mat Min Sub Slots Evolved . | . . . . Power . | . . . . Propulsion . | . . . . Utility . | . . . . Weapon . | . . . . Parts Attached 38 | 4 24 1 9 Power 7 | . 5 . 2 Engine 6 | . 5 . 1 Core 1 | . . . 1 Reactor . | . . . . Propulsion 11 | 2 4 . 5 Treads 6 | 2 4 . . Leg 5 | . . . 5 Wheel . | . . . . Hover . | . . . . Flight . | . . . . Utility 9 | . 9 . . Device 1 | . 1 . . Storage 3 | . 3 . . Processor 1 | . 1 . . Hackware . | . . . . Protection 4 | . 4 . . Artifact . | . . . . Weapon 11 | 2 6 1 2 Energy Gun 1 | . 1 . . Energy Cannon . | . . . . Ballistic Gun 4 | 2 1 . 1 Ballistic Cannon . | . . . . Launcher 5 | . 4 1 . Special Weapon 1 | . . . 1 Impact Weapon . | . . . . Slashing Weapon . | . . . . Piercing Weapon . | . . . . Special Melee Weapon . | . . . . Unidentified Prototypes . | . . . . Parts Lost 8 | . 5 1 2 Power 3 | . 3 . . Propulsion 3 | . 1 1 1 Utility . | . . . . Weapon 2 | . 1 . 1 Highest Loss Streak 1 | . 1 1 1 To Critical Strikes . | . . . . Average Backups 8 | 2 8 9 9 Power . | . . . . Propulsion 1 | . 1 2 2 Utility 3 | . 2 3 3 Weapon 3 | . 3 3 3 Tool/Special . | . . . . Unused Backups 9 | . 3 . 6 Power . | . . . . Propulsion 1 | . . . 1 Utility 5 | . 2 . 3 Weapon 3 | . 1 . 2 Tool/Special . | . . . . Average Slot Usage (%) 98 | . 98 99 97 Engine 11 | . 13 14 5 Core 1 | . . . 8 Treads 25 | . 27 27 11 Leg 2 | . . . 16 Storage 13 | . 13 14 14 Processor 8 | . 6 14 14 Protection 4 | . 7 . . Ballistic Gun 8 | . 8 . 16 Launcher 17 | . 18 27 4 Peak Build Rating 20 | 4 11 11 20 Average Rating 10 | 2 9 10 15 On Entrance 5 | . 4 8 11 Naked Turns . | . . . . Heaviest Build 95 | 4 95 17 87 Greatest Support 40 | 40 40 40 40 Greatest Overweight (x) 2 | . 2 . 2 Average Overweight (x) . | . . . . Largest Inventory Capacity 25 | 5 25 10 25 Average Capacity 14 | 5 15 10 11 Most Carried 11 | 5 11 10 11 Average Carried 8 | 2 8 9 9 Final Capacity 10 | 5 10 10 10 Final Carried 10 | 3 10 10 9 Class Distribution -------------------- 96% | Mutant 3% | Scavenger-Mutant Dominant Class ---------------- Mutant | -10/Materials Mutant | -10/Mines Mutant | -10/Subcaves Resources | -11 -10 -10 -10 ----------- Run | Yrd Mat Min Sub Matter Collected 1787 | 218 1142 144 283 Remotely . | . . . . Salvage Created 1475 | . 1199 217 59 Parts 112 | . 100 11 1 Haulers Intercepted 1 | . 1 . . Recyclers Shooed . | . . . . Parts Field Recycled . | . . . . Retrieved Matter . | . . . . Parts Self-Destructed 3 | . . . 3 Prevented . | . . . . Kills | -11 -10 -10 -10 ------- Run | Yrd Mat Min Sub Combat Hostiles Destroyed 22 | . 18 4 . Guns 11 | . 11 . . AOE 11 | . 7 4 . Classes Destroyed 8 | . 8 . . Worker 8 | . 7 1 . Builder 15 | . 13 2 . Tunneler 2 | . 1 1 . Hauler 1 | . 1 . . Recycler 6 | . 4 2 . Operator 1 | . 1 . . Watcher 3 | . 3 . . Grunt 22 | . 18 4 . Thug 1 | . . . 1 Best Kill Streak 6 | . 6 4 . Combat Bots Only 4 | . 4 2 . Max Kills in Single Turn 4 | . 3 4 1 Gunslinging 1 | . 1 . . Exploded 2 | . 2 1 . Melee . | . . . . Uniques/NPCs Destroyed . | . . . . Combat | -11 -10 -10 -10 -------- Run | Yrd Mat Min Sub Hostile Shots Fired 126 | . 100 10 16 Missed 40 | . 30 5 5 Hits 86 | . 70 5 11 Projectile 86 | . 70 5 11 AOE 1 | . . . 1 Critical Strikes 2 | . 2 . . Damage Taken 1845 | . 1368 153 324 Core 268 | . 196 29 43 Absorbed by Shields . | . . . . Regen/Repaired (Parts) 34 | . 34 . . Core Remaining (%) 100 | 100 . . . Volleys Fired 115 | . 91 8 16 Largest 2 | . 2 2 2 Hottest 120 | . 85 60 120 Shots Fired 196 | . 157 12 27 Gun 116 | . 97 . 19 Cannon . | . . . . Launcher 78 | . 60 12 6 Special 2 | . . . 2 Kinetic 115 | . 96 . 19 Thermal 3 | . 1 . 2 Explosive 78 | . 60 12 6 Electromagnetic . | . . . . Robot Hit Streak 8 | . 8 8 7 Robot Miss Streak 4 | . 4 1 2 Penetration Max . | . . . . Secondary Targets 4 | . 4 . . Max Gunslinging Chain 1 | . 1 . . Shots Hit Robots 108 | . 85 7 16 Core Hits 92 | . 71 15 6 Critical Kills . | . . . . Critical Parts Destroyed . | . . . . Critical Strikes . | . . . . Melee Attacks . | . . . . Impact . | . . . . Slashing . | . . . . Piercing . | . . . . Sneak Attacks . | . . . . Combat Hostiles . | . . . . Follow-up Attacks . | . . . . Damage Inflicted 3697 | . 2624 772 301 Guns 990 | . 836 . 154 Cannons . | . . . . Explosions 2625 | . 1756 744 125 Melee . | . . . . Ramming 60 | . 32 28 . Kinetic 973 | . 819 . 154 Thermal 39 | . 17 . 22 Explosive 2625 | . 1756 744 125 Electromagnetic . | . . . . Impact . | . . . . Slashing . | . . . . Piercing . | . . . . Highest Corruption 1 | . 1 1 1 Average Corruption 1 | . 1 1 1 Corruption Purged . | . . . . Corruption Blocked . | . . . . Effects 35 | . 16 8 11 Message Errors 10 | . 4 2 4 Matter Fused 8 | . 4 2 2 Heat Flow Errors 7 | . 5 1 1 Energy Discharges 1 | . . . 1 Parts Fused 1 | . . . 1 Data Loss (minor) 2 | . 1 1 . Data Loss (major) 3 | . 1 2 . Misfires 3 | . 1 . 2 Overload Shots . | . . . . Overflow Damage 120 | . 55 55 10 Projectiles . | . . . . Explosions 120 | . 55 55 10 Melee . | . . . . Knockbacks . | . . . . Impact . | . . . . Kinetic . | . . . . Secondary . | . . . . Self-Inflicted Damage 587 | . 455 82 50 Shots 21 | . 16 3 2 Rammed 7 | . 3 4 . Targets Rammed 9 | . 4 5 . Kicked . | . . . . Crushed 2 | . 1 1 . Highest Temperature 271 | . 271 157 183 Average Temperature 39 | . 36 53 104 Received Heat Transfer 636 | . 552 39 45 Siege Activations . | . . . . Martial Activations . | . . . . Shielding Activations . | . . . . Robots Disrupted . | . . . . Combat Hostiles . | . . . . Robots Corrupted . | . . . . Combat Hostiles . | . . . . Parts Fried . | . . . . Impact Corruptions . | . . . . Robots Melted . | . . . . Combat Hostiles . | . . . . Parts Melted . | . . . . Heat Transferred 197 | . 37 . 160 Parts Sabotaged . | . . . . Parts Stolen . | . . . . Parts Stripped . | . . . . Power Chain Reactions . | . . . . Alert | -11 -10 -10 -10 ------- Run | Yrd Mat Min Sub Maximum Alert Level 3 | . 3 1 . Low Security (%) 60 | 100 61 52 . Level 1 19 | . 14 47 . Level 2 12 | . 14 . . Level 3 7 | . 9 . . Level 4 . | . . . . Level 5 . | . . . . High Security . | . . . . Max Security . | . . . . Peak Influence 768 | . 768 356 . Initial 299 | . . 299 . Average 205 | . 211 185 . Influence Increases 1489 | . 1309 180 . Destroy 0b10 Robot/C 440 | . 360 80 . Destroy 0b10 Robot/NC 180 | . 150 30 . Destroy Leader 128 | . 108 20 . Successful Hack 29 | . 29 . . Disable Machine 225 | . 225 . . Destroy Structure 472 | . 422 50 . Lose Combat Pursuer 15 | . 15 . . Influence Decreases 1489 | . 541 943 5 Entered New Map 472 | . . 469 3 Time Decay 961 | . 495 464 2 Lost Part 41 | . 31 10 . Purge Threat 15 | . 15 . . Squads Dispatched 6 | . 6 . . Investigation 5 | . 5 . . Extermination . | . . . . Reinforcement 1 | . 1 . . Assault . | . . . . Garrison . | . . . . Intercept . | . . . . Searches Triggered . | . . . . Construction Impeded . | . . . . Haulers Reinforced . | . . . . Active Scanning Responses . | . . . . Cargo Convoy Interrupts . | . . . . Stealth | -11 -10 -10 -10 --------- Run | Yrd Mat Min Sub Distress Signals 4 | . 4 . . Communications Jammed . | . . . . Distress Signals . | . . . . Times Spotted 48 | . 30 4 14 Peak Tracking Total 7 | . 5 2 7 Tactical Retreats 1 | . 1 . . Traps | -11 -10 -10 -10 ------- Run | Yrd Mat Min Sub Traps Triggered 1 | . 1 . . Indirectly . | . . . . Trap Hack Attempts . | . . . . Triggered . | . . . . Disarmed . | . . . . Reprogrammed . | . . . . Reused . | . . . . Traps Extracted . | . . . . Installed . | . . . . Triggered . | . . . . Machines | -11 -10 -10 -10 ---------- Run | Yrd Mat Min Sub Machines Disabled 15 | . 15 . . Max in Single Turn 4 | . 4 . . Machines Repaired . | . . . . Machines Dismantled . | . . . . Machines Sabotaged . | . . . . Overloaded Fab Kills . | . . . . Hacking | -11 -10 -10 -10 --------- Run | Yrd Mat Min Sub Machines Accessed 9 | . 9 . . Terminals 7 | . 7 . . Fabricators . | . . . . Repair Stations 1 | . 1 . . Recycling Units 1 | . 1 . . Scanalyzers . | . . . . Garrison Access . | . . . . Total Hacks 44 | . 44 . . Successful 16 | . 16 . . Failed 28 | . 28 . . Catastrophic 3 | . 3 . . Database Lockouts . | . . . . Manual 14 | . 14 . . Terminals 33 | . 33 . . Fabricators . | . . . . Repair Stations 4 | . 4 . . Recycling Units 7 | . 7 . . Scanalyzers . | . . . . Garrison Access . | . . . . Terminal Hacks 7 | . 7 . . Level Access Points 1 | . 1 . . Alert Level 1 | . 1 . . Unreport Threat 1 | . 1 . . Dispatch Records 1 | . 1 . . Security Status 1 | . 1 . . Recall Investigation 1 | . 1 . . Zone Layout 1 | . 1 . . Fabricator Hacks . | . . . . Repair Station Hacks 3 | . 3 . . Scan Component 2 | . 2 . . Repair 1 | . 1 . . Recycling Unit Hacks 6 | . 6 . . Report Inventory 1 | . 1 . . Retrieve Matter 1 | . 1 . . Retrieve Components 4 | . 4 . . Scanalyzer . | . . . . Garrison Access Hacks . | . . . . Unauthorized Hacks . | . . . . Terminals . | . . . . Fabricators . | . . . . Repair Stations . | . . . . Recycling Units . | . . . . Scanalyzers . | . . . . Garrison Access . | . . . . Data Cores Recovered . | . . . . Used . | . . . . Hacking Detections 9 | . 9 . . Full Trace Events 9 | . 9 . . Feedback Events 1 | . 1 . . Corruption 1 | . 1 . . Feedback Blocked . | . . . . Robot Schematics Acquired . | . . . . Robots Built . | . . . . Authchips . | . . . . Time . | . . . . Total Robot Build Rating . | . . . . Part Schematics Acquired . | . . . . Parts Built . | . . . . Authchips . | . . . . Time . | . . . . Total Part Build Rating . | . . . . Parts Repaired 1 | . 1 . . Time 26 | . 26 . . Parts Recycled . | . . . . Recycled Matter . | . . . . Retrieved Matter 172 | . 172 . . Retrieved Components 15 | . 15 . . Parts Scanalyzed . | . . . . Part Schematics Acquired . | . . . . Parts Damaged . | . . . . Bothacking | -11 -10 -10 -10 ------------ Run | Yrd Mat Min Sub Used RIF Installer . | . . . . Robots Hacked . | . . . . Non-combat . | . . . . Combat . | . . . . Robot Hacks Applied . | . . . . Relay Couplers Released . | . . . . Fabnet Peak Effective % . | . . . . Robots Rewired . | . . . . Allies Hacked . | . . . . Hacks Repelled . | . . . . Allies | -11 -10 -10 -10 -------- Run | Yrd Mat Min Sub Total Allies . | . . . . Largest Group . | . . . . Highest-Rated Group . | . . . . Highest-Rated Ally . | . . . . Total Orders . | . . . . Ally Attacks . | . . . . Total Damage . | . . . . Kills . | . . . . Allies Corrupted . | . . . . Allies Melted . | . . . . Intel | -11 -10 -10 -10 ------- Run | Yrd Mat Min Sub Active Infowar (turns) 213 | . 213 . . Structural 213 | . 213 . . Robot Analysis Total . | . . . . Derelict Logs Recovered 4 | . . 2 2 Drone Launches . | . . . . Drone Recoveries . | . . . . Exploration | -11 -10 -10 -10 ------------- Run | Yrd Mat Min Sub Turns Passed 8592 | 68 5925 1179 1420 Spaces Moved 4372 | 51 2805 708 808 Core 21 | 21 . . . Treads 3822 | 30 2805 708 279 Legs 529 | . . . 529 Wheels . | . . . . Hover . | . . . . Flight . | . . . . Fastest Speed 50 | 50 160 160 120 Average Speed 183 | 114 195 160 164 Slowest Speed 320 | 160 320 160 320 Overloaded Moves . | . . . . Propulsion Burnouts . | . . . . Robots Hopped . | . . . . Potential Cave-ins . | . . . . Cave-ins Triggered . | . . . . Exploration Rate (%) 59 | 4 100 100 33 Regions Visited 3 Branch Regions 2 Pre-discovered Areas 2 | . . . 2 Known Exits Taken 2 | . 1 1 . Unknown Exits Taken 1 | 1 . . . Scrap Searched 4 | . . 1 3 Spaces Dug 121 | . 104 17 . Terrain Destroyed 597 | . 480 85 32 Melee . | . . . . Projectile . | . . . . AOE 597 | . 480 85 32 Terrain Rammed . | . . . . Walls Destroyed . | . . . . Machines Disabled . | . . . . Actions | -11 -10 -10 -10 --------- Run | Yrd Mat Min Sub Total 4746 | 61 3074 739 872 Wait 124 | . 102 15 7 Move 4369 | 50 2804 707 808 Hop . | . . . . Pick Up 52 | 7 30 2 13 Fast Attach . | . . . . Attach 20 | 4 11 2 3 Detach . | . . . . Swap 31 | . 18 . 13 Drop 26 | . 14 . 12 Fire 115 | . 91 8 16 Melee . | . . . . Ram . | . . . . Kick . | . . . . Crush 9 | . 4 5 . Escape Stasis . | . . . . Rewire . | . . . . Trap . | . . . . Miscellaneous . | . . . . Route ------- -11/Scrapyard -10/Materials (discovered 5 exits: *Mat x3 / *Min / *Sub) -10/Mines (discovered 3 exits: *Mat x2 / *Sub) -10/Subcaves History --------- Turn | Location | Event 39 | -11/Scrapyard | Discovered new exit (range 15) 69 | -11/Scrapyard | Entered Materials 256 | -10/Materials | Discovered new exit (range 15) 316 | -10/Materials | Build established: Mutant 439 | -10/Materials | Discovered new exit (range 16) 855 | -10/Materials | Discovered new exit (range 7) 1104 | -10/Materials | Discovered new exit (range 14) 2696 | -10/Materials | Discovered new exit (range 8) 3572 | -10/Materials | Identified exit to Materials 4104 | -10/Materials | Repaired Grenade Launcher? 4379 | -10/Materials | Core integrity fell below 50% 5079 | -10/Materials | Identified exit to Mines 5994 | -10/Materials | Entered Mines 6135 | -10/Mines | Core integrity fell below 20% 6170 | -10/Mines | Learned 2 Materials zone layouts 6284 | -10/Mines | Found a damaged Exp. Sensor Array with a note attached 6287 | -10/Mines | Found Prototype Device 6438 | -10/Mines | Discovered exit to Materials (range 7) 6451 | -10/Mines | Discovered new exit (range 8) 6579 | -10/Mines | Learned 4 Materials zone layouts 6649 | -10/Mines | Discovered exit to Materials (range 8) 6821 | -10/Mines | Received a Rocket Launcher from a helpful Derelict 7171 | -10/Mines | Identified exit to Subcaves 7173 | -10/Mines | Entered Subcaves 7195 | -10/Subcaves | Shifting Twisted Machinery released Sub. Monowheel 7223 | -10/Subcaves | Shifting Twisted Machinery released Piercing Trap 7245 | -10/Subcaves | Ambushed by swarm of Subdwellers 7251 | -10/Subcaves | Ambushed by Subdwellers from Twisted Machinery 7506 | -10/Subcaves | Learned location of Storage (-9) 7603 | -10/Subcaves | Learned location of Zion (-7) 8593 | -10/Subcaves | Destroyed by 0D-60U(R) with Subdweller Machine Gun Last Messages --------------- 08171_ System corrupted: FCS attempts to trigger Assault Rifle. 08171_ System corrupted: Assault Rifle misfires. 08214_ Acquired 3 matter. 08217_ Acquired 10 matter. 08347_ Dropped Hrd. Light Armor Plating. 08348_ Dropped Mak. Light Armor Plating. 08348_ Acquired Scrap Shield. 08349_ Dropped Scrap Shield. 08351_ Acquired Mak. Light Armor Plating. 08429_ System corrupted: FCS attempts to trigger Assault Rifle. 08429_ System corrupted: Assault Rifle misfires. 08461_ TINGG%>4D V9M3NDBM2|FZ 08570_ ID-WSN(R) destroyed. 08570_ 8J-GGI(g) destroyed. [Achievement: Backstab] 08578_ Acquired Carbon-fiber Leg. 08581_ Dropped Carbon-fiber Leg. 08591_ I2-D7M(g) destroyed. Map ----- +----------------------------------------------------+ | ?????????????????????????????????????????????????? | | ?????????????????????????????????????????????????? | | ?????????????????????????????????????????????????? | | ?????????????????????????????????????????????????? | | ?????????????????????????????????????????????????? | | ?????????????????????????????????????????????????? | | ?????????????????????????????????????????????????? | | ?????????????????????????????????????????????????? | | ?????????????????????????????????????????????????? | | ?????????????????????????????????????????????????? | | ?????????????????????????????????????????????????? | | ?????????????????????????????????????????????????? | | ???????????????????????????????####??????????????? | | ???????????????????????????????# ##?????????????? | | ???????????????????????????????# ##???###??????? | | ????????????????????????????#### ##??# ##????? | | ????????????????????????????# #??? ##### | | ????????????????????????????## ##???# | | ????????????????????????###### ## #???# | | ???????????????????????##;;##;;; ## ##??# | | ???????????????????????#;; ;= ; ###??# | | ???????????????????????#; &% ##?# | | ??????????????????????## ]%& =% ### | | ??????????????????????# !; "# ## | | ??????????????????????# ;""""# #? | | ??????????????????????# @#### ## ## ##### # | | ?????????????????????# #??###" #### #??## # | | ???????????????????# R " #????#####??####?## | | ???????????????????# "##????????????????# | | ??????????????????" #?????????????????## | | ???????????????? "# #?????????????????## | | ????????????????#?#####??????????????????# | | ????????????????????????????????????????# | | ????????????????????????????????????????# ## | | ????????????????????????????????????????## ##?# | | ?????????????????????????????????????????###??## | | ??????????????????????????????????????????????# | | ??????????????????????????????????????????????# | | ??????????????????????????????????????????????## | | ???????????????????????????????????????????????# | | ???????????????????????????????????????????????# | | ??????????????????????????????????????????????## | | ??????????????????????????????????????????????# | | ??????????????????????????????????????????????# | | ??????????????????????????????????????????????# | | ??????????????????????????????????????????????## | | ???????????????????????????????????????????????#] | | ???????????????????????????????????????????????# | | ???????????????????????????????????????????????# | | ??????????????????????????????????????????????## | +----------------------------------------------------+ Best States ------------- Heat Dissipation 25 Energy Generation 19 Energy Capacity 315 Matter Stores 300 Matter Capacity 300 Sight Range 16 Terrain Scan Density 10 Armor Coverage 150 Evasion (%) 55 Recoil Reduction 2 Item Schematics ----------------- None Robot Schematics ------------------ None Fabricated ------------ Nothing Repaired ---------- Grenade Launcher | 43% | -10/Materials Alien Tech Used ----------------- None Achievements -------------- Backstab Remodeling Challenges ------------ None Game ------ Seed ReactionFluxWartreads Manual? 0 Play Time 01:00:17 Cumulative 3.2 hours Start 2025.06.21 @ 16:37:43 End 2025.06.21 @ 17:44:01 Sessions 1 Manual Loads 0 Difficulty Rogue Special Mode None Game No. 4 Rogue 4 Adventurer 0 Explorer 0 Win Type - Total 0 Types 0/0/0/0/0/0/0/0/0/0 Lore% 3 Gallery% 4 Achievement% 6 Wizard Run 0 Options --------- Layout 1 ASCII 0 Keyboard 0 Movement Mouse Keybinds 0 Fullscreen 0 Font 16/Miniblock Map View 50x40 Zoom Use 0% Tactical HUD 1 Map Filters NONE Filters NONE Steam 0 RUN: 58852747-2bff-43ea-a055-6b009dd378a9